fUSD/lending_fUSD_20250611
["ID","MTS","AMOUNT","RATE_DAILY","PERIOD"]
[365462546,1749683444151,-10586.04,0.00019178,2]
[365462547,1749683444160,-178.316574,0.00019178,2]
[365462548,1749683444169,-2240.21,0.00019178,2]
[365462549,1749683444178,-422.53979213,0.00019178,2]
[365462550,1749683444187,-613.89,0.00019178,2]
[365462551,1749683444196,-835.45,0.00019178,2]
[365462552,1749683444206,-1448.88,0.00019178,2]
[365462553,1749683444215,-1351.7,0.00019178,2]
[365462554,1749683444224,-490.0,0.00019178,2]
[365462555,1749683444233,-490.0,0.00019178,2]
[365462556,1749683444242,-788.37,0.00019178,2]
[365462557,1749683444253,-480.0,0.00019178,2]
[365462558,1749683444262,-1574.93,0.00019178,2]
[365462559,1749683444271,-5500.73,0.00019178,2]
[365462560,1749683444280,-490.0,0.00019178,2]
[365462561,1749683444290,-1046.58,0.00019178,2]
[365462562,1749683444299,-588.5,0.00019178,2]
[365462563,1749683444308,-1342.29,0.00019178,2]
[365462564,1749683444317,-1117.21,0.00019178,2]
[365462565,1749683444327,-480.0,0.00019178,2]
[365462566,1749683444336,-2867.04,0.00019178,2]
[365462567,1749683444345,-480.0,0.00019178,2]
[365462568,1749683444354,-490.0,0.00019178,2]
[365462569,1749683444365,-1100.42,0.00019178,2]
[365462570,1749683444374,-480.0,0.00019178,2]
[365462571,1749683444383,-490.0,0.00019178,2]
[365462572,1749683444393,-777.2,0.00019178,2]
[365462573,1749683444402,-480.0,0.00019178,2]
[365462574,1749683444411,-530.91,0.00019178,2]
[365462575,1749683444421,-490.0,0.00019178,2]
[365462576,1749683444433,-490.0,0.00019178,2]
[365462577,1749683444442,-490.0,0.00019178,2]
[365462578,1749683444452,-480.0,0.00019178,2]
[365462579,1749683444461,-811.34,0.00019178,2]
[365462580,1749683444471,-1778.38,0.00019178,2]
[365462581,1749683444479,-554.18,0.00019178,2]
[365462582,1749683444488,-480.0,0.00019178,2]
[365462583,1749683444498,-490.0,0.00019178,2]
[365462584,1749683444507,-490.0,0.00019178,2]
[365462585,1749683444516,-490.0,0.00019178,2]
[365462586,1749683444525,-490.0,0.00019178,2]
[365462587,1749683444534,-490.0,0.00019178,2]
[365462588,1749683444543,-480.0,0.00019178,2]
[365462589,1749683444552,-490.0,0.00019178,2]
[365462590,1749683444562,-1214.93,0.00019178,2]
[365462591,1749683444571,-347.67793897,0.00019178,2]
[365462592,1749683444581,-490.0,0.00019178,2]
[365462593,1749683444591,-299.15881782,0.00019178,2]
[365462594,1749683444601,-480.0,0.00019178,2]
[365462595,1749683444614,-490.0,0.00019178,2]
[365462596,1749683444624,-552.36,0.00019178,2]
[365462597,1749683444634,-480.0,0.00019178,2]
[365462598,1749683444643,-1036.25,0.00019178,2]
[365462599,1749683444652,-490.0,0.00019178,2]
[365462600,1749683444662,-490.0,0.00019178,2]
[365462601,1749683444671,-1682.33,0.00019178,2]
[365462602,1749683444681,-480.0,0.00019178,2]
[365462603,1749683444690,-490.0,0.00019178,2]
[365462604,1749683444700,-490.0,0.00019178,2]
[365462605,1749683444709,-480.0,0.00019178,2]
[365462606,1749683444718,-490.0,0.00019178,2]
[365462607,1749683444727,-1816.9,0.00019178,2]
[365462608,1749683444736,-490.0,0.00019178,2]
[365462609,1749683444752,-490.0,0.00019178,2]
[365462610,1749683444762,-480.0,0.00019178,2]
[365462611,1749683444772,-480.0,0.00019178,2]
[365462612,1749683444782,-490.0,0.00019178,2]
[365462613,1749683444792,-490.0,0.00019178,2]
[365462614,1749683444804,-490.0,0.00019178,2]
[365462615,1749683444820,-490.0,0.00019178,2]
[365462616,1749683444830,-490.0,0.00019178,2]
[365462617,1749683444841,-1145.83,0.00019178,2]
[365462618,1749683444851,-490.0,0.00019178,2]
[365462619,1749683444863,-3584.98,0.00019178,2]
[365462620,1749683444872,-490.0,0.00019178,2]
[365462621,1749683444882,-420.0,0.00019178,2]
[365462622,1749683444891,-2139.71,0.00019178,2]
[365462623,1749683444900,-490.0,0.00019178,2]
[365462624,1749683444910,-1685.04,0.00019178,2]
[365462625,1749683444919,-536.92356052,0.00019178,2]
[365462626,1749683444929,-988.13,0.00019178,2]
[365462627,1749683444938,-480.0,0.00019178,2]
[365462628,1749683444948,-33.94940918,0.00019178,2]
[365462629,1749683444975,-456.05059082,0.00019178,2]
[365462630,1749683444985,-500.0,0.00019178,2]
[365462631,1749683444994,-490.0,0.00019178,2]
[365462632,1749683445003,-2029.95,0.00019178,2]
[365462633,1749683445012,-480.0,0.00019178,2]
[365462634,1749683445021,-490.0,0.00019178,2]
[365462635,1749683445030,-490.0,0.00019178,2]
[365462636,1749683445039,-490.0,0.00019178,2]
[365462637,1749683445048,-578.1166076,0.00019178,2]
[365462638,1749683445063,-702.3533924,0.00019178,2]
[365462639,1749683445073,-480.0,0.00019178,2]
[365462640,1749683445082,-882.95,0.00019178,2]
[365462641,1749683445091,-490.0,0.00019178,2]
[365462642,1749683445100,-490.0,0.00019178,2]
[365462643,1749683445109,-490.0,0.00019178,2]
[365462644,1749683445119,-500.0,0.00019178,2]
[365462645,1749683445128,-490.0,0.00019178,2]
[365462646,1749683445137,-500.0,0.00019178,2]
[365462647,1749683445145,-537.22,0.00019178,2]
[365462648,1749683445155,-490.0,0.00019178,2]
[365462649,1749683445164,-490.0,0.00019178,2]
[365462650,1749683445173,-555.79,0.00019178,2]
[365462651,1749683445182,-1944.48,0.00019178,2]
[365462652,1749683445191,-490.0,0.00019178,2]
[365462653,1749683445200,-500.0,0.00019178,2]
[365462654,1749683445209,-490.0,0.00019178,2]
[365462655,1749683445219,-1970.0,0.00019178,2]
[365462656,1749683445228,-490.0,0.00019178,2]
[365462657,1749683445237,-490.0,0.00019178,2]
[365462658,1749683445247,-362.87284148,0.00019178,2]
[365462659,1749683445257,-3546.46,0.00019178,2]
[365462660,1749683445266,-628.78,0.00019178,2]
[365462661,1749683445275,-1146.53,0.00019178,2]
[365462662,1749683445284,-490.0,0.00019178,2]
[365462663,1749683445293,-480.0,0.00019178,2]
[365462664,1749683445302,-480.0,0.00019178,2]
[365462665,1749683445311,-480.0,0.00019178,2]
[365462667,1749683445321,-490.0,0.00019178,2]
[365462668,1749683445330,-490.0,0.00019178,2]
[365462670,1749683445339,-480.0,0.00019178,2]
[365462672,1749683445348,-3157.87,0.00019178,2]
[365462674,1749683445358,-3157.87,0.00019178,2]
[365462676,1749683445367,-589.34,0.00019178,2]
[365462678,1749683445376,-490.0,0.00019178,2]
[365462680,1749683445385,-420.0,0.00019178,2]
[365462681,1749683445394,-556.3,0.00019178,2]
[365462682,1749683445403,-490.0,0.00019178,2]
[365462683,1749683445414,-443.5335875,0.00019178,2]
[365462684,1749683445423,-2017.7,0.00019178,2]
[365462685,1749683445432,-614.59,0.00019178,2]
[365462686,1749683445441,-2390.57,0.00019178,2]
[365462687,1749683445450,-490.0,0.00019178,2]
[365462688,1749683445459,-164.557187,0.00019178,2]
[365462689,1749683445468,-876.1,0.00019178,2]
[365462690,1749683445477,-3673.80414131,0.00019178,2]
[365462691,1749683445489,-2100.05512954,0.00019178,2]
[365462692,1749683445500,-4316.23010528,0.00019178,2]
[365462693,1749683445512,-1808.54062387,0.00019178,2]
[365462694,1749683445522,-480.0,0.00019178,2]
[365462695,1749683445531,-490.0,0.00019178,2]
[365462696,1749683445541,-412.85214385,0.00019178,2]
[365462697,1749683445552,-587.55265136,0.00019178,2]
[365462698,1749683445564,-497.12974831,0.00019178,2]
[365462699,1749683445579,-3227.01545648,0.00019178,2]
[365462700,1749683445588,-508.51,0.00019178,2]
[365462701,1749683445598,-480.0,0.00019178,2]
[365462702,1749683445610,-1656.05,0.00019178,2]
[365462703,1749683445620,-480.0,0.00019178,2]
[365462704,1749683445630,-647.68,0.00019178,2]
[365462705,1749683445640,-480.0,0.00019178,2]
[365462706,1749683445649,-490.0,0.00019178,2]
[365462707,1749683445659,-490.0,0.00019178,2]
[365462708,1749683445669,-490.0,0.00019178,2]
[365462709,1749683445679,-723.46,0.00019178,2]
[365462710,1749683445688,-490.0,0.00019178,2]
[365462711,1749683445700,-480.0,0.00019178,2]
[365462712,1749683445710,-490.0,0.00019178,2]
[365462713,1749683445719,-262.78226939,0.00019178,2]
[365462714,1749683445728,-490.0,0.00019178,2]
[365462715,1749683445738,-2666.28,0.00019178,2]
[365462716,1749683445748,-1466.48,0.00019178,2]
[365462717,1749683445758,-490.0,0.00019178,2]
[365462718,1749683445768,-490.0,0.00019178,2]
[365462719,1749683445777,-989.67,0.00019178,2]
[365462720,1749683445787,-490.0,0.00019178,2]
[365462721,1749683445796,-490.0,0.00019178,2]
[365462722,1749683445806,-490.0,0.00019178,2]
[365462723,1749683445815,-16469.4,0.00019178,2]
[365462724,1749683445825,-2408.27,0.00019178,2]
[365462725,1749683445834,-480.0,0.00019178,2]
[365462726,1749683445844,-3476.55,0.00019178,2]
[365462727,1749683445853,-480.0,0.00019178,2]
[365462728,1749683445864,-594.18,0.00019178,2]
[365462729,1749683445874,-490.0,0.00019178,2]
[365462730,1749683445883,-629.19,0.00019178,2]
[365462731,1749683445893,-584.5,0.00019178,2]
[365462732,1749683445903,-654.26,0.00019178,2]
[365462733,1749683445912,-480.0,0.00019178,2]
[365462734,1749683445921,-865.68,0.00019178,2]
[365462735,1749683445930,-1074.31,0.00019178,2]
[365462736,1749683445939,-518.39,0.00019178,2]
[365462737,1749683445949,-520.50417362,0.00019178,2]
[365462738,1749683445959,-726.94,0.00019178,2]
[365462740,1749683445969,-490.0,0.00019178,2]
[365462741,1749683445978,-420.0,0.00019178,2]
[365462742,1749683445987,-490.0,0.00019178,2]
[365462743,1749683445996,-490.0,0.00019178,2]
[365462744,1749683446006,-490.0,0.00019178,2]
[365462745,1749683446016,-5471.16,0.00019178,2]
[365462746,1749683446025,-428.76478457,0.00019178,2]
[365462747,1749683446034,-480.0,0.00019178,2]
[365462748,1749683446044,-490.0,0.00019178,2]
[365462749,1749683446054,-490.0,0.00019178,2]
[365462750,1749683446063,-715.42,0.00019178,2]
[365462751,1749683446073,-629.34,0.00019178,2]
[365462752,1749683446083,-481.7728298,0.00019178,2]
[365462753,1749683446092,-780.78,0.00019178,2]
[365462754,1749683446101,-490.0,0.00019178,2]
[365462755,1749683446113,-500.0,0.00019178,2]
[365462756,1749683446123,-500.0,0.00019178,2]
[365462757,1749683446132,-500.0,0.00019178,2]
[365462758,1749683446142,-300.45659928,0.00019178,2]
[365462759,1749683446152,-3197.29,0.00019178,2]
[365462760,1749683446161,-480.0,0.00019178,2]
[365462761,1749683446171,-490.0,0.00019178,2]
[365462762,1749683446181,-1376.62,0.00019178,2]
[365462763,1749683446190,-304.89,0.00019178,2]
[365462764,1749683446200,-585.50589009,0.00019193,2]
[365462765,1749683446210,-2710.38,0.00019206,2]
[365462766,1749683446219,-2347.87260389,0.00019212,2]
[365462767,1749683446228,-585.50589009,0.0001922,2]
[365462768,1749683446238,-686.53644718,0.00019238,2]
[365462769,1749683446247,-218.25802308,0.00019242,2]
[365462770,1749683446257,-238.14329088,0.00019242,2]
[365462771,1749683446266,-585.50589009,0.00019247,2]
[365462772,1749683446276,-375.0,0.0001926,2]
[365462773,1749683446285,-1674.56060631,0.00019267,2]
[365462774,1749683446295,-585.50589009,0.00019273,2]
[365462775,1749683446304,-244.0,0.0001928,2]
[365462776,1749683446314,-585.50589009,0.000193,2]
[365462777,1749683446323,-686.53644718,0.00019319,2]
[365462778,1749683446333,-585.50589009,0.00019326,2]
[365462779,1749683446342,-179.2850602,0.00019332,2]
[365462780,1749683446351,-500.0,0.00019341,2]
[365462781,1749683446362,-617.88,0.00019341,2]
[365462782,1749683446371,-617.88,0.00019341,2]
[365462783,1749683446381,-3157.87,0.00019341,2]
[365462784,1749683446391,-3157.87,0.00019341,2]
[365462785,1749683446652,-654.0,0.00019342,2]
[365462786,1749683446662,-931.112521,0.00019342,2]
[365462787,1749683446673,-844.706846,0.00019342,2]
[365462788,1749683446684,-470.0,0.00019342,2]
[365462789,1749683446695,-635.7,0.00019342,2]
[365462790,1749683446705,-490.0,0.00019342,2]
[365462791,1749683446716,-490.0,0.00019342,2]
[365462792,1749683446726,-490.0,0.00019342,2]
[365462793,1749683446735,-490.0,0.00019342,2]
[365462794,1749683446745,-490.0,0.00019342,2]
[365462795,1749683446755,-490.0,0.00019342,2]
[365462796,1749683446764,-490.0,0.00019342,2]
[365462797,1749683446774,-490.0,0.00019342,2]
[365462798,1749683446784,-490.0,0.00019342,2]
[365462799,1749683446794,-490.0,0.00019342,2]
[365462800,1749683446803,-490.0,0.00019342,2]
[365462801,1749683446813,-490.0,0.00019342,2]
[365462802,1749683446822,-490.0,0.00019342,2]
[365462803,1749683446832,-470.0,0.00019342,2]
[365462804,1749683446841,-490.0,0.00019342,2]
[365462805,1749683446851,-482.46285162,0.00019342,2]
[365462806,1749683446862,-470.0,0.00019342,2]
[365462807,1749683446871,-470.0,0.00019342,2]
[365462808,1749683446881,-661.20962,0.00019342,2]
[365462809,1749683446890,-470.0,0.00019342,2]
[365462810,1749683446900,-490.0,0.00019342,2]
[365462811,1749683446909,-490.0,0.00019342,2]
[365462812,1749683446919,-490.0,0.00019342,2]
[365462813,1749683446928,-490.0,0.00019342,2]
[365462814,1749683446938,-612.22,0.00019342,2]
[365462815,1749683446947,-490.0,0.00019342,2]
[365462816,1749683446957,-490.0,0.00019342,2]
[365462817,1749683446966,-490.0,0.00019342,2]
[365462818,1749683446975,-470.0,0.00019342,2]
[365462819,1749683446985,-773.21,0.00019342,2]
[365462820,1749683446994,-490.0,0.00019342,2]
[365462821,1749683447004,-470.0,0.00019342,2]
[365462822,1749683447013,-637.39,0.00019342,2]
[365462823,1749683447022,-470.0,0.00019342,2]
[365462824,1749683447031,-490.0,0.00019342,2]
[365462825,1749683447041,-490.0,0.00019342,2]
[365462826,1749683447050,-490.0,0.00019342,2]
[365462827,1749683447059,-490.0,0.00019342,2]
[365462828,1749683447069,-387.48451998,0.00019342,2]
[365462829,1749683447078,-490.0,0.00019342,2]
[365462830,1749683447087,-490.0,0.00019342,2]
[365462831,1749683447096,-490.0,0.00019342,2]
[365462832,1749683447106,-439.02945087,0.00019342,2]
[365462833,1749683447115,-490.0,0.00019342,2]
[365462834,1749683447125,-480.0,0.00019342,2]
[365462835,1749683447134,-470.0,0.00019342,2]
[365462836,1749683447144,-490.0,0.00019342,2]
[365462837,1749683447153,-490.0,0.00019342,2]
[365462838,1749683447162,-250.0,0.00019342,2]
[365462839,1749683447172,-785.54,0.00019342,2]
[365462840,1749683447182,-470.0,0.00019342,2]
[365462841,1749683447191,-470.0,0.00019342,2]
[365462842,1749683447200,-353.6776107,0.00019342,2]
[365462843,1749683447210,-490.0,0.00019342,2]
[365462844,1749683447219,-622.81431971,0.00019342,2]
[365462845,1749683447229,-490.0,0.00019342,2]
[365462846,1749683447238,-490.0,0.00019342,2]
[365462847,1749683447247,-490.0,0.00019342,2]
[365462848,1749683447257,-490.0,0.00019342,2]
[365462849,1749683447266,-490.0,0.00019342,2]
[365462850,1749683447276,-470.0,0.00019342,2]
[365462851,1749683447285,-490.0,0.00019342,2]
[365462852,1749683447295,-490.0,0.00019342,2]
[365462853,1749683447305,-819.62,0.00019342,2]
[365462854,1749683447314,-544.48,0.00019342,2]
[365462855,1749683447323,-490.0,0.00019342,2]
[365462856,1749683447332,-474.38374052,0.00019342,2]
[365462857,1749683447341,-159.35774265,0.00019342,2]
[365462858,1749683447351,-490.0,0.00019342,2]
[365462859,1749683447360,-490.0,0.00019342,2]
[365462860,1749683447369,-470.0,0.00019342,2]
[365462861,1749683447379,-470.0,0.00019342,2]
[365462862,1749683447388,-490.0,0.00019342,2]
[365462863,1749683447397,-562.14,0.00019342,2]
[365462864,1749683447407,-490.0,0.00019342,2]
[365462865,1749683447416,-490.0,0.00019342,2]
[365462866,1749683447426,-963.97,0.00019342,2]
[365462867,1749683447435,-541.0772691,0.00019342,2]
[365462868,1749683447444,-490.0,0.00019342,2]
[365462869,1749683447453,-490.0,0.00019342,2]
[365462870,1749683447463,-584.12,0.00019342,2]
[365462871,1749683447472,-490.0,0.00019342,2]
[365462872,1749683447481,-490.0,0.00019342,2]
[365462873,1749683447490,-490.0,0.00019342,2]
[365462874,1749683447499,-490.0,0.00019342,2]
[365462875,1749683447509,-771.9,0.00019342,2]
[365462876,1749683447518,-490.0,0.00019342,2]
[365462877,1749683447528,-490.0,0.00019342,2]
[365462878,1749683447537,-1502.18,0.00019342,2]
[365462879,1749683447546,-470.0,0.00019342,2]
[365462880,1749683447556,-470.0,0.00019342,2]
[365462881,1749683447565,-490.0,0.00019342,2]
[365462882,1749683447574,-490.0,0.00019342,2]
[365462883,1749683447584,-1359.07,0.00019342,2]
[365462884,1749683447594,-470.0,0.00019342,2]
[365462885,1749683447603,-552.74,0.00019342,2]
[365462886,1749683447616,-490.0,0.00019342,2]
[365462887,1749683447625,-587.1,0.00019342,2]
[365462888,1749683447636,-490.0,0.00019342,2]
[365462889,1749683447645,-470.0,0.00019342,2]
[365462890,1749683447654,-470.0,0.00019342,2]
[365462891,1749683447664,-470.0,0.00019342,2]
[365462892,1749683447674,-892.37,0.00019342,2]
[365462893,1749683447683,-922.51,0.00019342,2]
[365462894,1749683447693,-1713.02,0.00019342,2]
[365462895,1749683447703,-490.0,0.00019342,2]
[365462896,1749683447712,-490.0,0.00019342,2]
[365462897,1749683447722,-490.0,0.00019342,2]
[365462898,1749683447731,-682.18,0.00019342,2]
[365462899,1749683447741,-993.2,0.00019342,2]
[365462900,1749683447750,-470.0,0.00019342,2]
[365462901,1749683447760,-490.0,0.00019342,2]
[365462902,1749683447769,-226.81055674,0.00019342,2]
[365462903,1749683447779,-695.57,0.00019342,2]
[365462904,1749683447789,-490.0,0.00019342,2]
[365462905,1749683447799,-470.0,0.00019342,2]
[365462906,1749683447809,-470.0,0.00019342,2]
[365462907,1749683447818,-1204.0,0.00019342,2]
[365462908,1749683447827,-490.0,0.00019342,2]
[365462909,1749683447836,-490.0,0.00019342,2]
[365462910,1749683447846,-470.0,0.00019342,2]
[365462911,1749683447855,-490.0,0.00019342,2]
[365462912,1749683447865,-490.0,0.00019342,2]
[365462913,1749683447875,-490.0,0.00019342,2]
[365462914,1749683447884,-470.0,0.00019342,2]
[365462915,1749683447894,-490.0,0.00019342,2]
[365462916,1749683447903,-490.0,0.00019342,2]
[365462917,1749683447913,-490.0,0.00019342,2]
[365462918,1749683447922,-490.0,0.00019342,2]
[365462919,1749683447932,-726.84,0.00019342,2]
[365462920,1749683447941,-492.17,0.00019342,2]
[365462921,1749683447951,-1023.33,0.00019342,2]
[365462922,1749683447960,-470.0,0.00019342,2]
[365462923,1749683447970,-490.0,0.00019342,2]
[365462924,1749683447979,-475.37750756,0.00019342,2]
[365462925,1749683447989,-490.0,0.00019342,2]
[365462926,1749683447998,-218.59428142,0.00019342,2]
[365462927,1749683448007,-490.0,0.00019342,2]
[365462928,1749683448017,-490.0,0.00019342,2]
[365462929,1749683448026,-1227.76,0.00019342,2]
[365462930,1749683448036,-805.22,0.00019342,2]
[365462931,1749683448045,-490.0,0.00019342,2]
[365462932,1749683448054,-595.94185495,0.00019342,2]
[365462933,1749683448063,-490.0,0.00019342,2]
[365462934,1749683448072,-470.0,0.00019342,2]
[365462935,1749683448082,-480.0,0.00019342,2]
[365462936,1749683448091,-490.0,0.00019342,2]
[365462937,1749683448101,-511.8,0.00019342,2]
[365462938,1749683448110,-490.0,0.00019342,2]
[365462939,1749683448119,-490.0,0.00019342,2]
[365462940,1749683448129,-968.91,0.00019342,2]
[365462941,1749683448138,-490.0,0.00019342,2]
[365462942,1749683448147,-490.0,0.00019342,2]
[365462943,1749683448156,-466.50678961,0.00019342,2]
[365462944,1749683448166,-490.0,0.00019342,2]
[365462945,1749683448175,-490.0,0.00019342,2]
[365462946,1749683448186,-490.0,0.00019342,2]
[365462947,1749683448195,-490.0,0.00019342,2]
[365462948,1749683448205,-493.63,0.00019342,2]
[365462949,1749683448214,-490.0,0.00019342,2]
[365462950,1749683448224,-490.0,0.00019342,2]
[365462951,1749683448233,-490.0,0.00019342,2]
[365462952,1749683448243,-490.0,0.00019342,2]
[365462953,1749683448252,-490.0,0.00019342,2]
[365462954,1749683448262,-490.0,0.00019342,2]
[365462955,1749683448277,-490.0,0.00019342,2]
[365462956,1749683448297,-490.0,0.00019342,2]
[365462957,1749683448312,-525.1931772,0.00019342,2]
[365462958,1749683448327,-490.0,0.00019342,2]
[365462959,1749683448343,-490.0,0.00019342,2]
[365462960,1749683448358,-490.0,0.00019342,2]
[365462961,1749683448376,-516.96485775,0.00019342,2]
[365462962,1749683448390,-490.0,0.00019342,2]
[365462963,1749683448402,-492.18,0.00019342,2]
[365462964,1749683448418,-490.0,0.00019342,2]
[365462965,1749683448433,-435.36298009,0.00019342,2]
[365462966,1749683448448,-1382.88,0.00019342,2]
[365462967,1749683448464,-471.19826545,0.00019342,2]
[365462968,1749683448479,-480.0,0.00019342,2]
[365462969,1749683448493,-490.0,0.00019342,2]
[365462970,1749683448509,-479.97036863,0.00019342,2]
[365462971,1749683448524,-490.0,0.00019342,2]
[365462972,1749683448539,-616.25,0.00019342,2]
[365462973,1749683448553,-490.0,0.00019342,2]
[365462974,1749683448570,-490.0,0.00019342,2]
[365462975,1749683448585,-490.0,0.00019342,2]
[365462976,1749683448599,-490.0,0.00019342,2]
[365462977,1749683448613,-490.0,0.00019342,2]
[365462978,1749683448627,-490.0,0.00019342,2]
[365462979,1749683448644,-479.93494041,0.00019342,2]
[365462980,1749683448656,-782.9,0.00019342,2]
[365462981,1749683448669,-490.0,0.00019342,2]
[365462982,1749683448686,-480.0,0.00019342,2]
[365462983,1749683448702,-490.0,0.00019342,2]
[365462984,1749683448713,-490.0,0.00019342,2]
[365462985,1749683448725,-490.0,0.00019342,2]
[365462986,1749683448736,-490.0,0.00019342,2]
[365462987,1749683448748,-490.0,0.00019342,2]
[365462988,1749683448761,-490.0,0.00019342,2]
[365462989,1749683448775,-480.0,0.00019342,2]
[365462990,1749683448789,-490.0,0.00019342,2]
[365462991,1749683448818,-480.38619813,0.00019342,2]
[365462992,1749683448834,-1005.26,0.00019342,2]
[365462993,1749683448852,-490.0,0.00019342,2]
[365462994,1749683448870,-641.02,0.00019342,2]
[365462995,1749683448886,-490.0,0.00019342,2]
[365462996,1749683448901,-490.0,0.00019342,2]
[365462997,1749683448916,-490.0,0.00019342,2]
[365462998,1749683448931,-490.0,0.00019342,2]
[365462999,1749683448945,-475.40579763,0.00019342,2]
[365463000,1749683448961,-490.0,0.00019342,2]
[365463001,1749683448976,-641.79,0.00019342,2]
[365463002,1749683448990,-490.0,0.00019342,2]
[365463003,1749683449005,-490.0,0.00019342,2]
[365463004,1749683449019,-490.0,0.00019342,2]
[365463005,1749683449033,-1085.89,0.00019342,2]
[365463006,1749683449047,-1158.08,0.00019342,2]
[365463007,1749683449060,-707.17,0.00019342,2]
[365463008,1749683449073,-470.0,0.00019342,2]
[365463009,1749683449086,-490.0,0.00019342,2]
[365463010,1749683449100,-521.22,0.00019342,2]
[365463011,1749683449113,-490.0,0.00019342,2]
[365463012,1749683449127,-490.0,0.00019342,2]
[365463013,1749683449140,-490.0,0.00019342,2]
[365463014,1749683449154,-490.0,0.00019342,2]
[365463015,1749683449167,-1022.53,0.00019342,2]
[365463016,1749683449180,-2169.26,0.00019342,2]
[365463017,1749683449194,-490.0,0.00019342,2]
[365463018,1749683449207,-490.0,0.00019342,2]
[365463019,1749683449220,-490.0,0.00019342,2]
[365463020,1749683449232,-490.0,0.00019342,2]
[365463021,1749683449245,-490.0,0.00019342,2]
[365463022,1749683449258,-490.0,0.00019342,2]
[365463023,1749683449270,-1169.35,0.00019342,2]
[365463024,1749683449283,-1114.93,0.00019342,2]
[365463025,1749683449297,-490.0,0.00019342,2]
[365463026,1749683449309,-490.0,0.00019342,2]
[365463027,1749683449323,-686.51,0.00019342,2]
[365463028,1749683449336,-480.0,0.00019342,2]
[365463029,1749683449349,-1000.0,0.00019342,2]
[365463030,1749683449363,-1031.51,0.00019342,2]
[365463031,1749683449376,-470.0,0.00019342,2]
[365463032,1749683449389,-470.0,0.00019342,2]
[365463033,1749683449403,-488.08276855,0.00019342,2]
[365463034,1749683449416,-490.0,0.00019342,2]
[365463035,1749683449428,-490.0,0.00019342,2]
[365463036,1749683449441,-1136.5,0.00019342,2]
[365463037,1749683449453,-1094.81,0.00019342,2]
[365463038,1749683449466,-490.0,0.00019342,2]
[365463039,1749683449478,-490.0,0.00019342,2]
[365463040,1749683449491,-622.67,0.00019342,2]
[365463041,1749683449503,-470.0,0.00019342,2]
[365463042,1749683449516,-490.0,0.00019342,2]
[365463043,1749683449528,-490.0,0.00019342,2]
[365463044,1749683449541,-592.04,0.00019342,2]
[365463045,1749683449554,-490.0,0.00019342,2]
[365463046,1749683449567,-490.0,0.00019342,2]
[365463047,1749683449580,-470.0,0.00019342,2]
[365463048,1749683449592,-460.0,0.00019342,2]
[365463049,1749683449605,-490.0,0.00019342,2]
[365463050,1749683449621,-470.0,0.00019342,2]
[365463051,1749683449634,-810.98,0.00019342,2]
[365463052,1749683449647,-490.0,0.00019342,2]
[365463053,1749683449660,-2288.95,0.00019342,2]